bitfinex/quotes_ETHUSD_20250905
["timestamp","ask_amount","ask_price","bid_price","bid_amount"]
[1757084863720,2.33203991,4290.0,4289.0,2.33154334]
[1757084863938,2.33106034,4289.9,4288.9,3.32396465]
[1757084864153,0.001,4290.0,4288.1,3.77722851]
[1757084864154,0.92900156,4289.8,4288.1,3.77722851]
[1757084864447,2.33121969,4289.6,4288.1,1.4452]
[1757084864650,2.33136586,4289.4,4288.3,2.33588899]
[1757084864850,2.3314493,4289.2,4288.3,0.004]
[1757084865053,4.34,4289.7,4288.3,0.004]
[1757084865255,4.86590016,4289.6,4288.3,0.004]
[1757084865447,2.33143495,4289.3,4288.3,0.004]
[1757084865654,2.33147828,4289.2,4288.3,0.004]
[1757084865834,1.97340016,4289.6,4288.3,0.004]
[1757084866025,0.2981,4288.4,4288.3,0.004]
[1757084866227,8.41547202,4288.4,4288.3,0.004]
[1757084867562,9.20747202,4288.4,4288.3,0.004]
[1757084868433,4.339,4288.4,4288.3,0.004]
[1757084868648,6.67087202,4288.4,4288.3,0.004]
[1757084868856,7.87113985,4288.4,4288.3,0.004]
[1757084869054,10.40773985,4288.4,4288.3,0.004]
[1757084869559,3.792,4287.9,4287.8,0.00400001]
[1757084869734,10.46214393,4287.9,4287.8,0.00400001]
[1757084869939,13.49873675,4287.9,4287.8,0.00400001]
[1757084870147,3.12430711,4287.6,4287.5,0.004]
[1757084870326,7.84230711,4287.6,4287.5,0.004]
[1757084870529,13.92490711,4287.6,4287.5,0.004]
[1757084871004,9.58690711,4287.6,4287.5,0.004]
[1757084871281,15.12517494,4287.6,4287.5,0.004]
[1757084872183,10.78717494,4287.6,4287.5,0.004]
[1757084872387,3.12436151,4287.5,4287.4,1e-08]
[1757084872704,3.12468795,4286.9,4286.6,0.004]
[1757084872980,7.76078795,4286.9,4286.6,0.004]
[1757084873183,9.20728795,4286.9,4286.6,0.004]
[1757084873888,4.86928795,4286.9,4286.6,0.004]
[1757084874081,9.20728795,4286.9,4286.6,0.004]
[1757084874398,10.36127857,4286.9,4286.6,0.004]
[1757084875159,5.56717857,4286.9,4286.6,0.004]
[1757084875391,3.792,4286.8,4286.6,0.004]
[1757084875695,6.12501448,4286.3,4285.8,0.029]
[1757084875893,13.62490649,4286.3,4285.8,0.029]
[1757084876062,15.07140649,4286.3,4285.8,0.029]
[1757084876263,3.12523222,4285.9,4285.8,0.029]
[1757084876459,10.46323222,4285.9,4285.8,1e-08]
[1757084876657,12.20783222,4285.9,4285.8,1e-08]
[1757084876907,13.55430086,4285.9,4285.8,1e-08]
[1757084877095,13.73193857,4285.9,4285.8,1e-08]
[1757084877696,3.792,4285.8,4284.8,0.025]
[1757084877992,2.33377675,4284.9,4284.8,0.025]
[1757084878159,6.67077675,4284.9,4284.8,0.025]
[1757084878368,13.27972519,4284.9,4284.8,0.025]
[1757084878895,12.82362519,4284.9,4284.8,0.025]
[1757084879195,12.82362519,4284.9,4282.5,0.004]
[1757084879196,2.33482176,4283.0,4282.5,0.004]
[1757084879499,4.337,4282.9,4282.5,0.004]
[1757084879695,1.719,4283.4,4282.9,0.2883]
[1757084879999,4.337,4283.3,4283.0,1.4452]
[1757084880198,0.116,4283.1,4282.7,0.4528]
[1757084880364,4.337,4283.2,4282.7,0.4528]
[1757084880365,4.337,4283.2,4283.0,0.2883]
[1757084880692,4.337,4283.2,4283.1,1.4452]
[1757084880895,1.719,4284.5,4283.1,1.90935]
[1757084881069,1.719,4284.5,4283.6,2.33447873]
[1757084881272,1.719,4284.5,4283.7,1.4452]
[1757084881469,5.373,4285.4,4284.3,2.33407023]
[1757084881470,4.337,4284.7,4284.3,2.33407023]
[1757084881668,5.373,4285.4,4284.4,1.4452]
[1757084881669,4.337,4284.6,4284.4,1.4452]
[1757084881905,4.337,4284.7,4284.5,1.4452]
[1757084882100,4.3362,4284.7,4284.5,0.9924]
[1757084882273,4.3362,4284.7,4284.6,0.4528]
[1757084882596,4.3362,4284.7,4283.9,1.4452]
[1757084882759,3.0,4284.6,4283.3,1.4452]
[1757084882961,3.792,4284.4,4282.8,0.025]
[1757084883210,2.33421255,4284.1,4282.8,0.4778]
[1757084883407,0.792,4284.2,4282.8,0.4778]
[1757084883408,3.12632152,4283.9,4282.8,0.025]
[1757084883713,2.3346814,4283.3,4282.8,0.025]
[1757084884004,4.337,4283.2,4282.8,0.025]
[1757084884305,0.61263215,4283.8,4282.9,0.4528]
[1757084884506,4.337,4283.7,4282.9,1.4452]
[1757084884720,0.43362,4284.7,4283.0,0.4528]
[1757084885007,4.337,4284.4,4283.6,2.3344542]
[1757084885206,4.337,4284.4,4283.7,0.4528]
[1757084885573,1.719,4284.5,4283.7,0.4528]
[1757084885777,4.336,4284.4,4283.7,1.4452]
[1757084885996,1.719,4284.5,4284.0,2.33423152]
[1757084886314,4.336,4284.4,4284.1,1.4452]
[1757084886488,4.336,4284.4,4284.2,0.4528]
[1757084886678,4.336,4284.4,4284.3,0.4528]
[1757084887018,4.9415,4284.4,4283.7,0.4528]
[1757084887313,6.67007242,4284.4,4283.7,0.4528]
[1757084887607,4.336,4284.3,4283.7,0.4528]
[1757084887914,4.336,4284.3,4284.0,2.33426295]
[1757084888090,4.336,4284.3,4284.1,3.77940996]
[1757084888290,2.81441133,4285.8,4284.2,1.4452]
[1757084888291,5.373,4285.4,4284.2,1.4452]
[1757084888486,4.336,4285.3,4284.2,0.9924]
[1757084888693,3.0,4285.2,4283.8,0.4528]
[1757084888890,2.3342229,4284.1,4283.2,0.4528]
[1757084889091,4.335,4284.0,4283.2,0.4528]
[1757084889491,4.335,4284.0,4283.4,2.33454554]
[1757084889691,4.05248679,4285.5,4283.7,2.33439489]
[1757084890025,7.335,4285.2,4283.8,0.4472]
[1757084890308,0.116,4284.1,4283.8,0.4472]
[1757084890617,4.451,4284.4,4284.2,2.33412054]
[1757084890784,4.451,4284.4,4284.2,0.4472]
[1757084891112,0.116,4284.4,4284.3,3.81720358]
[1757084891316,4.05245946,4285.5,4284.4,2.3340491]
[1757084891480,0.116,4284.6,4284.3,1.86482036]
[1757084891814,0.116,4284.6,4284.1,2.33415841]
[1757084892021,0.116,4284.6,4284.4,0.4472]
[1757084892518,0.116,4284.6,4283.9,0.116]
[1757084893117,0.116,4284.4,4284.0,2.33422122]
[1757084893322,0.116,4284.4,4284.1,1.4831]
[1757084893619,0.116,4284.4,4284.2,1.4831]
[1757084893797,0.116,4284.4,4284.3,0.4472]
[1757084894000,0.116,4284.4,4283.7,0.4472]
[1757084894598,0.116,4284.4,4283.7,2.7815918]
[1757084894902,0.116,4284.4,4283.7,2.78159749]
[1757084895095,4.334,4284.5,4283.7,0.4472]
[1757084895304,0.116,4284.1,4284.0,2.33426704]
[1757084895530,0.116,4284.1,4284.0,3.81736704]
[1757084895886,4.449,4284.6,4284.0,1.4831]
[1757084896090,0.116,4284.6,4284.0,1.4831]
[1757084896310,0.116,4284.6,4284.3,2.33406295]
[1757084896617,0.116,4284.6,4284.2,2.33411342]
[1757084896819,0.116,4284.6,4284.1,2.33419877]
[1757084897114,0.116,4284.6,4284.2,2.33415226]
[1757084897498,0.116,4284.6,4284.1,2.33418113]
[1757084897692,0.116,4284.6,4284.0,1.4831]
[1757084897898,0.116,4285.3,4284.6,2.33394015]
[1757084898098,0.116,4285.6,4285.3,2.33355891]
[1757084898405,0.025,4285.8,4285.7,2.33334111]
[1757084898796,0.025,4285.8,4285.7,3.81644111]
[1757084899118,0.025,4285.8,4285.7,7.33048347]
[1757084901299,0.025,4285.8,4285.7,8.23848347]
[1757084901499,1e-08,4285.8,4285.7,8.23848347]
[1757084901807,1e-08,4285.8,4285.7,8.54448347]
[1757084902199,1e-08,4285.8,4285.7,7.75248347]
[1757084902599,1e-08,4285.8,4285.7,8.54448347]
[1757084903802,1e-08,4286.8,4286.7,6.12479679]
[1757084904005,1e-08,4286.8,4286.7,29.8294999]
[1757084904212,1e-08,4286.8,4286.7,31.6185999]
[1757084904600,1e-08,4286.8,4286.7,31.7120311]
[1757084904899,1e-08,4286.8,4286.7,14.90109393]
[1757084905093,1e-08,4286.8,4286.7,14.80766273]
[1757084905314,1e-08,4286.8,4286.7,13.96089679]
[1757084907200,0.001,4288.5,4288.4,2.33187202]
[1757084907398,0.001,4288.5,4288.4,6.65787202]
[1757084907597,0.001,4288.5,4288.4,11.44697202]
[1757084908302,0.001,4288.5,4288.4,11.93297202]
[1757084908622,0.001,4288.5,4288.4,13.35946307]
[1757084908927,0.001,4288.5,4288.4,11.08436307]
[1757084909529,0.001,4288.5,4288.4,8.75249105]
[1757084909715,0.001,4288.5,4288.4,11.53156307]
[1757084909903,0.0002,4288.5,4288.4,11.08436307]
[1757084910098,0.0002,4288.5,4288.4,11.53156307]
[1757084910327,0.0002,4288.5,4288.4,11.08436307]
[1757084910706,0.0002,4288.5,4288.4,12.56746307]
[1757084910896,0.0002,4288.5,4288.4,13.35946307]
[1757084911330,1e-08,4288.8,4288.7,6.1237089]
[1757084911503,1e-08,4288.8,4288.7,12.54900365]
[1757084911826,1e-08,4288.8,4288.7,14.12550169]
[1757084912431,1e-08,4288.8,4288.7,14.03210365]
[1757084913806,1e-08,4288.8,4288.7,14.14810365]
[1757084914329,1e-08,4288.8,4288.7,14.45410365]
[1757084914519,0.001,4290.3,4290.2,2.33089366]
[1757084914828,0.001,4290.3,4290.2,10.79298303]
[1757084915206,0.001,4290.3,4290.2,11.54618303]
[1757084915525,0.001,4290.3,4290.2,12.58208303]
[1757084916928,1e-08,4290.7,4290.6,2.33067636]
[1757084917248,1e-08,4290.7,4290.6,9.65067636]
[1757084917420,1e-08,4290.7,4290.6,11.90512836]
[1757084917749,1e-08,4290.7,4290.6,5.44667636]
[1757084918045,1e-08,4290.7,4290.6,9.76467636]
[1757084918634,1e-08,4290.7,4290.6,7.434]
[1757084918817,1.29580001,4290.7,4290.6,9.76467636]
[1757084919013,1.73490001,4290.7,4290.6,0.116]
[1757084919324,1.73490001,4290.7,4290.6,4.434]
[1757084919531,1.73490001,4290.7,4290.6,6.64867636]
[1757084919708,1.29580001,4290.7,4290.6,9.64867636]
[1757084919906,1.29580001,4290.7,4290.6,7.318]
[1757084920108,1.29580001,4290.7,4290.6,9.64867636]
[1757084920408,1e-08,4290.7,4290.6,9.64867636]
[1757084920810,1e-08,4290.7,4290.6,9.76467636]
[1757084921209,1e-08,4290.7,4290.6,10.97422208]
[1757084921432,0.29920001,4290.7,4290.6,7.432]
[1757084921621,0.29920001,4290.7,4290.6,9.76267636]
[1757084921826,1.23340001,4290.7,4290.6,9.76267636]
[1757084923030,1e-08,4290.7,4290.6,9.76267636]
[1757084923638,1e-08,4290.7,4290.6,7.43]
[1757084923839,1e-08,4290.7,4290.6,9.76067636]
[1757084924319,1e-08,4290.7,4290.6,9.64467636]
[1757084924524,1e-08,4290.7,4290.6,9.76067636]
[1757084924744,1e-08,4290.7,4290.6,11.68275517]
[1757084924955,1e-08,4290.7,4290.6,13.42495517]
[1757084925751,1e-08,4290.7,4290.6,10.89075517]
[1757084925954,1e-08,4290.7,4290.6,9.76067636]
[1757084926327,1e-08,4290.7,4290.6,11.29907636]
[1757084926728,1e-08,4290.7,4290.6,12.29487636]
[1757084927421,1e-08,4290.7,4290.6,9.76067636]
[1757084929051,0.29920001,4290.7,4290.6,6.64467636]
[1757084929352,1.66550001,4290.7,4290.6,6.64467636]
[1757084929570,1.66550001,4290.7,4290.6,4.314]
[1757084929855,1.83465001,4290.7,4290.1,2.33093873]
[1757084930028,1.83465001,4290.7,4290.2,2.33085279]
[1757084930353,1.83465001,4290.7,4290.1,6.64092972]
[1757084930354,1.3663,4290.6,4290.1,6.64092972]
[1757084930559,1.3663,4290.5,4290.2,4.31]
[1757084930852,0.2992,4290.3,4289.6,2.3311701]
[1757084931041,1.3663,4290.2,4288.8,1.742]
[1757084931243,0.4321,4290.2,4289.4,2.33129224]
[1757084931441,1.3663,4290.1,4289.5,4.31]
[1757084931754,0.9342,4290.0,4289.5,6.64127404]
[1757084931931,0.9342,4290.0,4289.5,4.31]
[1757084932136,0.9342,4290.0,4289.5,6.64126873]
[1757084932357,0.2992,4289.6,4289.5,4.31]
[1757084932659,0.2992,4289.6,4289.5,6.64127404]
[1757084932660,1.2334,4289.6,4289.5,6.64127404]
[1757084932828,0.9342,4290.1,4289.8,2.331111]
[1757084933029,0.9342,4290.1,4289.9,2.33102466]
[1757084933321,0.2992,4290.0,4289.8,2.33107929]
[1757084933526,0.9342,4290.4,4289.9,2.33105666]
[1757084933730,0.9342,4290.4,4290.0,0.02331002]
[1757084933958,1e-08,4290.7,4290.2,5.33089366]
[1757084934129,1e-08,4290.7,4290.3,4.308]
[1757084934931,0.2992,4290.4,4290.3,4.308]
[1757084935127,0.9342,4290.6,4290.3,6.63883933]
[1757084935656,0.2992,4290.4,4290.3,4.308]
[1757084936035,1.2334,4290.4,4290.1,4.308]
[1757084936243,1.3663,4290.3,4290.1,4.308]
[1757084936438,1.2334,4290.2,4290.1,4.308]
[1757084936955,1.6655,4290.2,4289.9,4.307]
[1757084937148,0.2992,4290.2,4289.9,4.307]
[1757084937348,1.3663,4290.1,4289.9,4.307]
[1757084937523,0.2992,4290.0,4289.9,4.307]
[1757084937729,0.9342,4290.5,4289.9,6.63805666]
[1757084937926,1.07253,4290.5,4289.9,6.63805666]
[1757084938336,1e-08,4290.7,4289.9,4.307]
[1757084938670,1e-08,4290.7,4290.0,5.33096141]
[1757084938973,1e-08,4290.7,4289.9,4.307]
[1757084938974,0.43210001,4290.7,4289.9,4.307]
[1757084939146,0.116,4290.6,4289.9,4.307]
[1757084939553,0.2992,4290.0,4289.8,0.116]
[1757084939761,0.2992,4290.0,4289.6,4.306]
[1757084940062,1.2334,4290.0,4289.6,4.306]
[1757084940430,1.2334,4290.0,4289.4,0.116]
[1757084940431,0.9342,4289.9,4289.4,0.116]
[1757084940631,0.9342,4289.9,4289.5,2.33126969]
[1757084941066,0.2992,4289.6,4289.4,0.116]
[1757084941277,0.9342,4289.8,4289.0,4.305]
[1757084941452,0.9342,4290.3,4289.5,2.33122788]
[1757084941654,0.9342,4290.3,4289.0,4.305]
[1757084942010,2.33116423,4289.8,4289.0,4.305]
[1757084942188,2.79732253,4289.8,4289.0,4.305]
[1757084942485,0.2992,4289.1,4288.8,0.025]
[1757084942968,1.717,4289.5,4288.8,2.3566327]
[1757084943338,0.2992,4288.9,4288.8,0.025]
[1757084943746,0.9342,4289.4,4288.8,0.025]
[1757084944276,0.9342,4289.4,4289.0,0.004]
[1757084944572,0.9342,4289.3,4289.0,0.004]
[1757084944861,1.717,4289.5,4289.0,0.004]
[1757084945433,2.6512,4289.5,4289.0,0.004]
[1757084945634,1.717,4289.5,4289.0,0.004]
[1757084945964,0.2992,4289.1,4289.0,0.004]
[1757084946553,1.6655,4289.1,4289.0,0.004]
[1757084946877,3.99699145,4289.1,4289.0,0.004]
[1757084947770,8.29999145,4289.1,4289.0,0.004]
[1757084948156,1.2334,4289.1,4289.0,0.004]
[1757084948665,0.2992,4289.1,4289.0,0.004]
[1757084949333,4.85227318,4289.1,4289.0,0.004]
[1757084949757,7.85227318,4289.1,4289.0,0.004]
[1757084950474,8.64427318,4289.1,4289.0,0.004]
[1757084950844,12.94527318,4289.1,4289.0,0.004]
[1757084951045,1.2713,4289.1,4289.0,0.004]
[1757084951242,1.717,4289.5,4289.0,0.004]
[1757084951443,0.9721,4289.8,4289.0,0.004]
[1757084951761,0.116,4289.1,4289.0,0.004]
[1757084952173,8.36659145,4289.1,4289.0,0.004]
[1757084952352,1.4341,4289.8,4289.0,0.004]
[1757084952553,6.77458638,4289.7,4289.0,0.004]
[1757084952875,2.33121969,4289.6,4289.0,0.004]
[1757084953192,0.14341,4289.7,4289.0,0.004]
[1757084953364,6.6311592,4289.8,4289.0,0.004]
[1757084953559,2.33092428,4290.2,4289.1,2.3314584]
[1757084953761,4.20540398,4289.8,4289.0,2.33549802]
[1757084953963,0.9721,4290.3,4289.0,0.004]
[1757084954288,6.63088661,4290.3,4289.0,3.81744156]
[1757084954463,5.36786297,4290.3,4289.1,2.33147745]
[1757084954661,2.33093281,4290.2,4289.0,1.4859]
[1757084954865,4.0477685,4290.5,4289.1,0.02331491]
[1757084954866,4.04773147,4290.5,4289.1,0.02331491]
[1757084955195,4.299,4290.2,4289.5,2.33124193]
[1757084955365,1.717,4290.5,4289.5,0.4606]
[1757084955560,1.667,4290.5,4289.8,2.33109668]
[1757084955781,1.667,4290.5,4289.5,0.4606]
[1757084956155,2.59637348,4290.5,4289.0,1.0253]
[1757084956380,5.966,4290.5,4289.6,2.3311843]
[1757084956680,5.965,4290.5,4289.1,0.4606]
[1757084956876,5.965,4290.5,4289.5,2.33123223]
[1757084957049,5.965,4290.5,4289.1,0.4606]
[1757084957251,5.965,4290.5,4289.7,2.33114999]
[1757084957450,4.29800001,4290.7,4289.8,0.233115]
[1757084957684,4.29800001,4290.7,4289.0,0.004]
[1757084957685,1e-08,4290.7,4290.0,2.33100233]
[1757084957862,1e-08,4290.7,4290.6,0.2916]
[1757084958063,1e-08,4290.7,4290.1,0.4606]
[1757084958380,1e-08,4290.7,4290.2,14.5]
[1757084958581,1e-08,4290.7,4289.0,1.721]
[1757084958582,0.3,4290.0,4289.0,1.721]
[1757084958755,0.3,4290.0,4289.3,2.33138085]
[1757084958956,5.7328,4290.6,4289.6,14.5]
[1757084959155,2.33088523,4290.3,4289.6,14.5]
[1757084959487,2.33086398,4290.3,4289.6,14.5]
[1757084959647,4.297,4290.4,4289.6,14.5]
[1757084959850,4.87028,4290.4,4289.6,14.5]
[1757084960051,0.3,4289.7,4289.6,14.5]
[1757084960250,0.3,4289.7,4289.0,1.721]
[1757084960484,0.9721,4290.3,4289.0,1.721]
[1757084960696,6.62694039,4290.2,4289.2,2.33143459]
[1757084960850,6.62694039,4290.2,4289.1,14.9606]
[1757084960851,4.296,4290.2,4289.1,14.9606]
[1757084961058,1e-08,4290.7,4289.8,2.33106528]
[1757084961290,1e-08,4290.7,4289.7,2.33115052]
[1757084961291,2.33062737,4290.7,4289.7,2.33115052]
[1757084961582,1e-08,4290.7,4289.2,4.0213]
[1757084961795,0.9721,4290.6,4289.2,3.0]
[1757084962004,4.295,4290.5,4289.3,2.33138274]
[1757084962169,0.116,4289.7,4289.3,2.33138274]
[1757084962366,0.116,4289.7,4289.2,5.72850797]
[1757084962701,0.116,4290.2,4289.6,2.62281361]
[1757084962853,0.116,4290.2,4289.6,0.2916]
[1757084963499,1e-08,4290.7,4289.3,0.4606]
[1757084963666,0.116,4289.8,4289.3,0.4606]
[1757084963999,0.116,4289.8,4289.7,0.2916]
[1757084964296,0.116,4289.8,4289.4,3.81322346]
[1757084964297,0.116,4289.8,4289.4,2.79192577]
[1757084964496,0.116,4289.8,4289.5,2.33127404]
[1757084964710,0.116,4289.8,4289.5,0.4606]
[1757084965012,0.116,4289.8,4289.7,0.2916]
[1757084965397,0.116,4289.8,4289.5,2.33123824]
[1757084965712,0.1152,4289.8,4289.3,2.33138274]
[1757084966088,0.1152,4289.8,4289.1,14.616]
[1757084966393,2.33084228,4290.3,4289.3,2.33134505]
[1757084966714,0.37666423,4290.3,4289.3,2.33138274]
[1757084966891,3.76658914,4290.4,4289.4,2.3312929]
[1757084967088,2.3308472,4290.3,4289.3,2.3313643]
[1757084967293,1.4358,4290.4,4289.4,2.33129829]
[1757084967602,1.4358,4290.4,4289.2,3.0]
[1757084967801,0.3101,4289.3,4289.1,14.5]
[1757084968112,0.3101,4289.3,4289.0,0.004]
[1757084968810,1.4241,4289.2,4289.0,0.004]
[1757084968984,2.33149145,4289.1,4289.0,0.004]
[1757084969180,7.06569145,4289.1,4289.0,0.004]
[1757084969415,8.43459956,4289.1,4289.0,0.004]
[1757084969616,0.9721,4290.2,4289.0,0.2956]
[1757084969909,0.3,4289.1,4289.0,0.004]
[1757084970111,6.62221372,4289.7,4289.0,0.004]
[1757084970315,0.89532879,4289.7,4289.0,0.004]
[1757084970610,2.33125704,4289.6,4289.0,0.004]
[1757084970814,6.62214508,4289.8,4289.0,0.004]
[1757084971118,0.9721,4290.2,4289.1,2.33144712]
[1757084971293,4.291,4290.1,4289.1,2.33149145]
[1757084971485,0.4637,4290.0,4289.1,2.33147585]
[1757084971685,4.291,4290.1,4289.2,2.33143104]
[1757084971879,4.291,4290.1,4289.0,0.004]
[1757084971880,4.81731,4290.1,4289.0,0.004]
[1757084972090,4.81731,4290.1,4289.2,2.33142652]
[1757084972494,0.52631,4290.1,4289.2,2.33139501]
[1757084972695,4.81631,4290.1,4289.3,14.5]
[1757084972933,4.81631,4290.1,4289.4,2.33128911]
[1757084973125,4.29,4290.3,4289.7,2.33116529]
[1757084973298,1e-08,4290.7,4289.7,0.4606]
[1757084973621,1e-08,4290.7,4289.7,15.9819]
[1757084973796,1e-08,4290.7,4290.1,2.33090254]
[1757084973996,1e-08,4290.7,4290.2,2.33088376]
[1757084974196,1e-08,4290.7,4290.3,2.33080641]
[1757084974410,1e-08,4290.7,4290.3,2.33081384]
[1757084974607,1e-08,4290.7,4290.4,0.4606]
[1757084975019,1e-08,4290.7,4290.6,2.62227636]
[1757084975197,1e-08,4290.7,4290.6,3.69466814]
[1757084975397,1e-08,4290.7,4290.6,8.17656814]
[1757084975598,1e-08,4290.7,4290.6,5.17656814]
[1757084975875,1e-08,4290.7,4290.6,19.67656814]
[1757084976422,1e-08,4290.7,4290.6,17.58287636]
[1757084976835,1e-08,4290.7,4290.6,17.12227636]
[1757084977018,1e-08,4290.7,4290.6,16.83067636]
[1757084977226,1e-08,4290.7,4290.6,14.5]
[1757084978546,1e-08,4290.7,4290.6,16.83067636]
[1757084978743,1e-08,4290.7,4290.6,14.5]
[1757084978948,1e-08,4290.8,4290.7,0.792]
[1757084979246,0.001,4291.6,4291.5,2.33018758]
[1757084979406,0.001,4291.6,4291.5,9.91078758]
[1757084979609,0.001,4291.6,4291.5,25.88968758]
[1757084979815,0.001,4291.6,4291.5,28.15759555]
[1757084985054,2.3291088,4293.5,4291.5,18.42440797]
[1757084985233,0.9049,4293.2,4292.7,2.32953618]
[1757084985428,0.025,4293.8,4292.7,9.61253618]
[1757084985754,0.4644,4293.5,4292.7,18.783]
[1757084985925,0.3243,4292.8,4292.7,14.5]
[1757084986439,1.2292,4292.8,4292.7,14.5]
[1757084987155,1.35212,4292.8,4292.7,14.5]
[1757084987455,1.35212,4292.8,4290.8,4.04756679]
[1757084987456,2.3296252,4292.6,4291.7,4.282]
[1757084987637,1.3693,4292.5,4291.6,6.6111321]
[1757084987822,1.3693,4292.5,4291.8,14.5]
[1757084988028,1.3693,4292.5,4291.8,16.83000182]
[1757084988224,0.9049,4292.5,4291.9,2.32996852]
[1757084988557,0.025,4292.8,4291.8,14.5]
[1757084988859,0.025,4292.8,4292.5,2.32961565]
[1757084989057,0.025,4292.8,4292.3,4.281]
[1757084989241,0.025,4292.8,4292.4,2.32968652]
[1757084989557,0.025,4292.8,4292.3,4.281]
[1757084989764,0.025,4292.8,4292.4,2.329699]
[1757084989960,0.025,4292.8,4292.7,2.32953618]
[1757084990135,0.025,4292.8,4292.7,3.13423165]
[1757084990455,0.025,4292.8,4292.7,3.58603165]
[1757084991174,0.025,4292.8,4292.7,7.49713165]
[1757084991760,0.025,4292.8,4292.7,21.99713165]
[1757084992254,0.025,4292.8,4292.7,21.08603165]
[1757084992465,0.025,4292.8,4292.7,14.5]
[1757084992634,0.3243,4292.8,4292.7,14.5]
[1757084993460,1.692,4292.8,4292.7,14.5]
[1757084993674,4.02068192,4292.8,4292.3,4.278]
[1757084993962,1.3677,4292.7,4292.1,4.278]
[1757084994127,0.9049,4292.7,4292.2,14.5]
[1757084994753,0.0242,4292.8,4292.2,17.06258751]
[1757084995066,0.0242,4292.8,4292.5,2.329617]
[1757084995228,0.0242,4292.8,4292.6,6.60758747]
[1757084995433,0.0242,4292.8,4292.7,6.60753618]
[1757084995631,0.0242,4292.8,4292.7,4.278]
[1757084996567,0.3245,4292.8,4292.7,4.278]
[1757084996869,0.0252,4292.8,4292.7,4.278]
[1757084997065,0.3261,4292.8,4292.5,4.278]
[1757084997448,0.0252,4292.8,4292.5,4.278]
[1757084999271,0.3009,4292.6,4292.2,14.5]
[1757084999436,1.2058,4292.6,4292.2,14.5]
[1757085000267,1.2058,4292.6,4291.8,0.004]
[1757085000268,1.366,4292.5,4291.8,0.004]
[1757085000471,5.32978236,4292.3,4291.8,0.004]
[1757085000775,2.6324704,4291.9,4291.8,0.004]
[1757085000940,0.3025,4291.9,4291.8,0.004]
[1757085001267,3.9968704,4291.9,4291.8,0.004]
[1757085001467,5.05704401,4291.9,4291.8,0.004]
[1757085001767,8.84904401,4291.9,4291.8,0.004]
[1757085002163,8.84904401,4291.9,4291.8,1e-08]
[1757085002373,13.24061252,4291.9,4291.8,1e-08]
[1757085002769,13.12404401,4291.9,4291.8,1e-08]
[1757085003462,13.07404401,4291.9,4291.8,1e-08]
[1757085004290,13.19153767,4291.9,4291.8,1e-08]
[1757085004501,6.12224187,4291.4,4291.3,1e-08]
[1757085004652,16.60648357,4291.4,4291.3,1e-08]
[1757085004972,16.60648357,4291.4,4289.8,0.025]
[1757085004973,2.33105666,4289.9,4289.8,0.025]
[1757085005174,6.60505666,4289.9,4289.8,0.025]
[1757085005401,2.33143709,4289.2,4289.1,0.004]
[1757085005574,12.11343709,4289.2,4289.1,0.004]
[1757085005770,7.79604534,4289.2,4289.1,0.004]
[1757085005973,9.54063709,4289.2,4289.1,0.004]
[1757085006489,9.88953709,4289.2,4289.1,0.004]
[1757085006792,5.99,4289.2,4289.1,0.004]
[1757085007020,9.88953709,4289.2,4289.1,0.004]
[1757085007159,2.33149145,4289.1,4289.0,0.004]
[1757085007358,2.33149145,4289.1,4288.5,0.004]
[1757085007359,3.12376327,4288.6,4288.5,0.004]
[1757085007557,10.71206327,4288.6,4288.5,0.004]
[1757085007780,11.96586327,4288.6,4288.5,0.004]
[1757085008290,6.12387202,4288.4,4288.3,0.004]
[1757085008663,7.69197202,4288.4,4288.3,0.004]
[1757085008854,8.6497961,4288.4,4288.3,0.004]
[1757085009684,8.3008961,4288.4,4288.3,0.004]
[1757085009885,12.5748961,4288.4,4288.3,0.004]
[1757085010093,12.9237961,4288.4,4288.3,0.004]
[1757085010567,8.3008961,4288.4,4288.3,0.004]
[1757085010771,12.9237961,4288.4,4288.3,0.004]
[1757085011666,8.3008961,4288.4,4288.3,0.004]
[1757085011862,12.5738961,4288.4,4288.3,0.004]
[1757085012064,12.9731961,4288.4,4288.3,0.004]
[1757085012691,12.9731961,4288.4,4286.8,0.025]
[1757085012858,0.792,4288.2,4286.8,0.025]
[1757085013065,3.0,4287.0,4286.8,0.025]
[1757085013261,5.33268795,4286.9,4286.8,0.025]
[1757085013465,6.60568795,4286.9,4286.8,0.025]
[1757085013674,10.78191531,4286.9,4286.8,0.025]
[1757085013876,12.48501531,4286.9,4286.8,0.025]
[1757085014258,12.91591531,4286.9,4286.8,0.025]
[1757085014864,13.03293793,4286.9,4286.8,0.025]
[1757085015190,12.91591531,4286.9,4286.8,1e-08]
[1757085015792,8.64291531,4286.9,4286.8,1e-08]
[1757085016005,12.91591531,4286.9,4286.8,1e-08]
[1757085016858,2.33274237,4286.8,4286.3,1e-08]
[1757085017096,6.12496005,4286.4,4286.3,1e-08]
[1757085017260,10.70236005,4286.4,4286.3,1e-08]
[1757085017465,12.02156005,4286.4,4286.3,1e-08]
[1757085017761,2.33310754,4286.2,4284.8,0.025]
[1757085018000,6.12523222,4285.9,4285.8,1e-08]
[1757085018202,6.72550359,4285.9,4285.8,1e-08]
[1757085018699,7.63660359,4285.9,4285.8,1e-08]
[1757085018890,10.69310359,4285.9,4285.8,1e-08]
[1757085019264,5.33323222,4285.9,4285.8,1e-08]
[1757085019465,1.718,4286.1,4285.8,0.29200001]